fUST/lending_fUST_20250727
["ID","MTS","AMOUNT","RATE_DAILY","PERIOD"]
[375198642,1753582269207,-151.0,0.00022503,2]
[375198643,1753582269217,-151.0,0.00022503,2]
[375198644,1753582269227,-151.0,0.00022503,2]
[375198645,1753582269237,-151.0,0.00022503,7]
[375198646,1753582269247,-151.0,0.00022503,7]
[375198647,1753582269259,-460.0,0.00022516,2]
[375198648,1753582269270,-460.0,0.00022516,2]
[375198649,1753582269280,-460.0,0.00022516,2]
[375198650,1753582269290,-727.74,0.00022516,2]
[375198651,1753582269301,-805.9,0.00022516,2]
[375198652,1753582269310,-460.0,0.00022516,2]
[375198653,1753582269320,-460.0,0.00022516,2]
[375198654,1753582269331,-460.0,0.00022516,2]
[375198655,1753582269341,-1417.39,0.00022516,2]
[375198656,1753582269351,-502.97,0.00022516,2]
[375198657,1753582269361,-460.0,0.00022516,2]
[375198658,1753582269370,-151.0,0.00022516,7]
[375198659,1753582269380,-1588.93,0.00022516,2]
[375198660,1753582269389,-955.56,0.00022516,2]
[375198661,1753582269399,-460.0,0.00022516,2]
[375198662,1753582269409,-460.0,0.00022516,2]
[375198663,1753582269418,-460.0,0.00022516,2]
[375198664,1753582269428,-464.84,0.00022516,2]
[375198665,1753582269439,-460.0,0.00022516,2]
[375198666,1753582269451,-562.76,0.00022516,2]
[375198667,1753582269462,-1937.42,0.00022516,2]
[375198668,1753582269471,-2170.36,0.00022516,2]
[375198669,1753582269482,-460.0,0.00022516,2]
[375198670,1753582269493,-272.26,0.00022516,2]
[375198671,1753582269503,-460.0,0.00022516,2]
[375198672,1753582269513,-460.0,0.00022516,2]
[375198673,1753582269522,-3500.14,0.00022516,2]
[375198674,1753582269532,-1578.15,0.00022518,2]
[375198675,1753582269541,-3942.302754,0.00022558,2]
[375198676,1753582269551,-4331.55739442,0.00022568,2]
[375198677,1753582269561,-4088.1679559,0.00022613,2]
[375198678,1753582269571,-3247.78997933,0.00022624,7]
[375198679,1753582269580,-4239.43017027,0.00022668,2]
[375198680,1753582269590,-4396.28908657,0.00022723,2]
[375198681,1753582269600,-460.0,0.00022739,2]
[375198682,1753582269609,-460.0,0.00022739,2]
[375198683,1753582269619,-460.0,0.00022739,2]
[375198684,1753582269629,-460.0,0.00022739,2]
[375198685,1753582269638,-596.4218944,0.00022739,2]
[375198686,1753582269648,-487.33,0.00022739,2]
[375198687,1753582269658,-3933.84,0.00022739,2]
[375198688,1753582269667,-1793.96,0.00022739,2]
[375198689,1753582269676,-509.61,0.00022739,2]
[375198690,1753582269686,-460.0,0.00022739,2]
[375198691,1753582269695,-460.0,0.00022739,2]
[375198692,1753582269705,-340.93848214,0.00022739,2]
[375198693,1753582269716,-1968.49,0.00022739,2]
[375198694,1753582269726,-460.0,0.00022739,2]
[375198695,1753582269735,-591.71,0.00022739,2]
[375198696,1753582269744,-460.0,0.00022739,2]
[375198697,1753582269754,-1208.47,0.00022739,2]
[375198698,1753582269763,-460.0,0.00022739,2]
[375198699,1753582269772,-460.0,0.00022739,2]
[375198700,1753582269782,-460.0,0.00022739,2]
[375198701,1753582269792,-460.0,0.00022739,2]
[375198702,1753582269801,-1316.47,0.00022739,2]
[375198703,1753582269810,-487.35,0.00022739,2]
[375198704,1753582269820,-1027.94,0.00022739,2]
[375198705,1753582269830,-460.0,0.00022739,2]
[375198706,1753582269839,-715.99,0.00022739,2]
[375198707,1753582269850,-460.0,0.00022739,2]
[375198708,1753582269861,-1619.17,0.00022739,2]
[375198709,1753582269870,-465.67,0.00022739,2]
[375198710,1753582269881,-587.06,0.00022739,2]
[375198711,1753582269890,-460.0,0.00022739,2]
[375198712,1753582269901,-509.37,0.00022739,2]
[375198713,1753582269911,-472.92,0.00022739,2]
[375198714,1753582269921,-2351.0,0.00022771,2]
[375198715,1753582269930,-460.0,0.0002279,2]
[375198716,1753582269940,-460.0,0.0002279,2]
[375198717,1753582269949,-460.0,0.0002279,2]
[375198718,1753582269960,-727.74,0.0002279,2]
[375198719,1753582269970,-805.9,0.0002279,2]
[375198720,1753582269982,-460.0,0.0002279,2]
[375198721,1753582269992,-460.0,0.0002279,2]
[375198722,1753582270002,-460.0,0.0002279,2]
[375198723,1753582270012,-1417.39,0.0002279,2]
[375198724,1753582270022,-502.97,0.0002279,2]
[375198725,1753582270031,-264.91,0.0002279,2]
[375198726,1753582270040,-1588.93,0.0002279,2]
[375198727,1753582270050,-955.56,0.0002279,2]
[375198728,1753582270059,-460.0,0.0002279,2]
[375198729,1753582270069,-226.59,0.0002279,2]
[375198730,1753582270080,-460.0,0.0002279,2]
[375198731,1753582270089,-464.84,0.0002279,2]
[375198732,1753582270099,-460.0,0.0002279,2]
[375198733,1753582270108,-562.76,0.0002279,2]
[375198734,1753582270117,-1937.42,0.0002279,2]
[375198735,1753582270127,-2170.36,0.0002279,2]
[375198736,1753582270136,-460.0,0.0002279,2]
[375198737,1753582270146,-460.0,0.0002279,2]
[375198738,1753582270155,-460.0,0.0002279,2]
[375198739,1753582270165,-3500.14,0.0002279,2]
[375198740,1753582270174,-1578.15,0.00022792,2]
[375198741,1753582270183,-3247.78997933,0.00022797,7]
[375198742,1753582270194,-500.0,0.00022808,2]
[375198743,1753582270203,-150.0,0.00022885,2]
[375198744,1753582270214,-420.57824123,0.00022889,2]
[375198745,1753582270223,-3247.78997933,0.00022969,8]
[375198746,1753582270233,-570.94,0.0002297,2]
[375198747,1753582270242,-210.29,0.00022998,2]
[375198748,1753582270251,-160.0,0.00023,3]
[375198749,1753582270261,-526.20897225,0.00023,3]
[375198750,1753582270270,-160.0,0.00023,2]
[375198751,1753582270279,-460.0,0.00023013,2]
[375198752,1753582270289,-460.0,0.00023013,2]
[375198753,1753582270298,-460.0,0.00023013,2]
[375198754,1753582270307,-460.0,0.00023013,2]
[375198755,1753582270316,-487.33,0.00023013,2]
[375198756,1753582270326,-3933.84,0.00023013,2]
[375198757,1753582270335,-1793.96,0.00023013,2]
[375198758,1753582270344,-509.61,0.00023013,2]
[375198759,1753582270353,-460.0,0.00023013,2]
[375198760,1753582270363,-460.0,0.00023013,2]
[375198761,1753582270373,-1968.49,0.00023013,2]
[375198762,1753582270383,-460.0,0.00023013,2]
[375198763,1753582270393,-591.71,0.00023013,2]
[375198764,1753582270403,-460.0,0.00023013,2]
[375198765,1753582270412,-1208.47,0.00023013,2]
[375198766,1753582270422,-460.0,0.00023013,2]
[375198767,1753582270431,-460.0,0.00023013,2]
[375198768,1753582270440,-460.0,0.00023013,2]
[375198769,1753582270451,-460.0,0.00023013,2]
[375198770,1753582270463,-1316.47,0.00023013,2]
[375198771,1753582270473,-487.35,0.00023013,2]
[375198772,1753582270482,-1027.94,0.00023013,2]
[375198773,1753582270491,-460.0,0.00023013,2]
[375198774,1753582270500,-715.99,0.00023013,2]
[375198775,1753582270509,-1619.17,0.00023013,2]
[375198776,1753582270518,-465.67,0.00023013,2]
[375198777,1753582270527,-587.06,0.00023013,2]
[375198778,1753582270537,-460.0,0.00023013,2]
[375198779,1753582270545,-509.37,0.00023013,2]
[375198780,1753582270554,-472.92,0.00023013,2]
[375198781,1753582270564,-25000.0,0.00023051,2]
[375198782,1753582270574,-460.0,0.00023064,2]
[375198783,1753582270583,-599.25220768,0.00023064,2]
[375198784,1753582270592,-460.0,0.00023064,2]
[375198785,1753582270601,-727.74,0.00023064,2]
[375198786,1753582270610,-805.9,0.00023064,2]
[375198787,1753582270619,-460.0,0.00023064,2]
[375198788,1753582270628,-460.0,0.00023064,2]
[375198789,1753582270638,-218.69870445,0.00023064,2]
[375198790,1753582270647,-152.068139,0.00023064,7]
[375198791,1753582270657,-1417.39,0.00023064,2]
[375198792,1753582270666,-502.97,0.00023064,2]
[375198793,1753582270675,-1588.93,0.00023064,2]
[375198794,1753582270685,-955.56,0.00023064,2]
[375198795,1753582270694,-460.0,0.00023064,2]
[375198796,1753582270703,-460.0,0.00023064,2]
[375198797,1753582270713,-460.0,0.00023064,2]
[375198798,1753582270722,-464.84,0.00023064,2]
[375198799,1753582270731,-562.76,0.00023064,2]
[375198800,1753582270740,-1937.42,0.00023064,2]
[375198801,1753582270749,-2170.36,0.00023064,2]
[375198802,1753582270759,-460.0,0.00023064,2]
[375198803,1753582270768,-460.0,0.00023064,2]
[375198804,1753582270777,-460.0,0.00023064,2]
[375198805,1753582270786,-3500.14,0.00023064,2]
[375198806,1753582270795,-1578.15,0.00023066,2]
[375198807,1753582270804,-570.94,0.0002307,3]
[375198808,1753582270813,-859.29015359,0.0002307,2]
[375198809,1753582270822,-4331.55739442,0.00023076,2]
[375198810,1753582270831,-150.0,0.00023122,2]
[375198811,1753582270841,-150.21630841,0.00023138,2]
[375198812,1753582270850,-3247.78997933,0.00023141,8]
[375198813,1753582270859,-570.94,0.0002317,7]
[375198814,1753582270868,-167.79222295,0.00023205,2]
[375198815,1753582270878,-570.94,0.0002327,7]
[375198816,1753582270887,-460.0,0.00023287,2]
[375198817,1753582270896,-460.0,0.00023287,2]
[375198818,1753582270905,-460.0,0.00023287,2]
[375198819,1753582270914,-460.0,0.00023287,2]
[375198820,1753582270923,-487.33,0.00023287,2]
[375198821,1753582270932,-3933.84,0.00023287,2]
[375198822,1753582270941,-1793.96,0.00023287,2]
[375198823,1753582270950,-509.61,0.00023287,2]
[375198824,1753582270959,-460.0,0.00023287,2]
[375198825,1753582270970,-460.0,0.00023287,2]
[375198826,1753582270981,-1968.49,0.00023287,2]
[375198827,1753582270992,-460.0,0.00023287,2]
[375198828,1753582271001,-591.71,0.00023287,2]
[375198829,1753582271009,-460.0,0.00023287,2]
[375198830,1753582271018,-1208.47,0.00023287,2]
[375198831,1753582271029,-591.1,0.00023287,2]
[375198832,1753582271038,-460.0,0.00023287,2]
[375198833,1753582271047,-460.0,0.00023287,2]
[375198834,1753582271056,-460.0,0.00023287,2]
[375198835,1753582271067,-1316.47,0.00023287,2]
[375198836,1753582271077,-487.35,0.00023287,2]
[375198837,1753582271087,-1027.94,0.00023287,2]
[375198838,1753582271096,-460.0,0.00023287,2]
[375198839,1753582271106,-715.99,0.00023287,2]
[375198840,1753582271202,-1619.17,0.00023287,2]
[375198841,1753582271213,-465.67,0.00023287,2]
[375198842,1753582271223,-587.06,0.00023287,2]
[375198843,1753582271233,-460.0,0.00023287,2]
[375198844,1753582271243,-509.37,0.00023287,2]
[375198845,1753582271253,-472.92,0.00023287,2]
[375198846,1753582271262,-154.980881,0.00023311,2]
[375198847,1753582271271,-3247.78997933,0.00023314,9]
[375198848,1753582271282,-291.001268,0.00023314,7]
[375198849,1753582271291,-460.0,0.00023338,2]
[375198850,1753582271301,-460.0,0.00023338,2]
[375198851,1753582271311,-727.74,0.00023338,2]
[375198852,1753582271321,-805.9,0.00023338,2]
[375198853,1753582271330,-460.0,0.00023338,2]
[375198854,1753582271340,-460.0,0.00023338,2]
[375198855,1753582271349,-1417.39,0.00023338,2]
[375198856,1753582271359,-502.97,0.00023338,2]
[375198857,1753582271368,-1588.93,0.00023338,2]
[375198858,1753582271377,-955.56,0.00023338,2]
[375198859,1753582271387,-407.29719596,0.00023338,2]
[375198860,1753582271396,-460.0,0.00023338,2]
[375198861,1753582271405,-460.0,0.00023338,2]
[375198862,1753582271414,-464.84,0.00023338,2]
[375198863,1753582271423,-562.76,0.00023338,2]
[375198864,1753582271432,-1937.42,0.00023338,2]
[375198865,1753582271442,-2170.36,0.00023338,2]
[375198866,1753582271451,-460.0,0.00023338,2]
[375198867,1753582271460,-460.0,0.00023338,2]
[375198868,1753582271470,-460.0,0.00023338,2]
[375198869,1753582271480,-3500.14,0.00023338,2]
[375198870,1753582271489,-1578.15,0.0002334,2]
[375198871,1753582271498,-570.95327308,0.0002337,3]
[375198872,1753582271507,-886.69,0.000234,7]
[375198873,1753582271517,-20836.21,0.000234,2]
[375198874,1753582271526,-156.94268995,0.00023435,2]
[375198875,1753582271535,-3247.78997933,0.00023486,9]
[375198876,1753582271544,-151.0,0.000235,7]
[375198877,1753582271554,-460.0,0.00023561,2]
[375198878,1753582271564,-175.71619859,0.00023561,2]
[375198879,1753582271574,-414.04783953,0.00023561,2]
[375198880,1753582271583,-460.0,0.00023561,2]
[375198881,1753582271593,-487.33,0.00023561,2]
[375198882,1753582271602,-3933.84,0.00023561,2]
[375198883,1753582271611,-1793.96,0.00023561,2]
[375198884,1753582271620,-509.61,0.00023561,2]
[375198885,1753582271629,-460.0,0.00023561,2]
[375198886,1753582271640,-460.0,0.00023561,2]
[375198887,1753582271651,-1968.49,0.00023561,2]
[375198888,1753582271661,-606.38157996,0.00023561,2]
[375198889,1753582271671,-591.71,0.00023561,2]
[375198890,1753582271682,-460.0,0.00023561,2]
[375198891,1753582271693,-1208.47,0.00023561,2]
[375198892,1753582271704,-460.0,0.00023561,2]
[375198893,1753582271715,-460.0,0.00023561,2]
[375198894,1753582271725,-460.0,0.00023561,2]
[375198895,1753582271734,-1316.47,0.00023561,2]
[375198896,1753582271744,-487.35,0.00023561,2]
[375198897,1753582271754,-1027.94,0.00023561,2]
[375198898,1753582271763,-460.0,0.00023561,2]
[375198899,1753582271772,-715.99,0.00023561,2]
[375198900,1753582271782,-1619.17,0.00023561,2]
[375198901,1753582271792,-465.67,0.00023561,2]
[375198902,1753582271802,-587.06,0.00023561,2]
[375198903,1753582271811,-460.0,0.00023561,2]
[375198904,1753582271821,-509.37,0.00023561,2]
[375198905,1753582271831,-472.92,0.00023561,2]
[375198906,1753582271840,-4331.55739442,0.00023583,2]
[375198907,1753582271850,-25000.0,0.00023599,2]
[375198908,1753582271859,-151.0,0.000236,7]
[375198909,1753582271869,-151.378164,0.000236,7]
[375198910,1753582271878,-152.926859,0.000236,7]
[375198911,1753582271888,-460.0,0.00023612,2]
[375198912,1753582271897,-460.0,0.00023612,2]
[375198913,1753582271907,-727.74,0.00023612,2]
[375198914,1753582271917,-151.0,0.00023612,7]
[375198915,1753582271927,-151.0,0.00023612,7]
[375198916,1753582271937,-805.9,0.00023612,2]
[375198917,1753582271946,-460.0,0.00023612,2]
[375198918,1753582271956,-460.0,0.00023612,2]
[375198919,1753582271965,-1417.39,0.00023612,2]
[375198920,1753582271976,-502.97,0.00023612,2]
[375198921,1753582271990,-1588.93,0.00023612,2]
[375198922,1753582271999,-955.56,0.00023612,2]
[375198923,1753582272009,-460.0,0.00023612,2]
[375198924,1753582272018,-464.84,0.00023612,2]
[375198925,1753582272028,-460.0,0.00023612,2]
[375198926,1753582272037,-562.76,0.00023612,2]
[375198927,1753582272047,-1937.42,0.00023612,2]
[375198928,1753582272057,-2170.36,0.00023612,2]
[375198929,1753582272066,-241.22,0.00023612,2]
[375198930,1753582272075,-460.0,0.00023612,2]
[375198931,1753582272085,-460.0,0.00023612,2]
[375198932,1753582272095,-3500.14,0.00023612,2]
[375198933,1753582272104,-1578.15,0.00023614,2]
[375198934,1753582272113,-160.0,0.00023644,3]
[375198935,1753582272123,-3247.78997933,0.00023659,9]
[375198936,1753582272133,-154.980881,0.00023753,4]
[375198937,1753582272142,-1862.22,0.000238,7]
[375198938,1753582272151,-3247.78997933,0.00023831,10]
[375198939,1753582272160,-460.0,0.00023835,2]
[375198940,1753582272170,-460.0,0.00023835,2]
[375198941,1753582272178,-487.33,0.00023835,2]
[375198942,1753582272187,-3933.84,0.00023835,2]
[375198943,1753582272197,-1793.96,0.00023835,2]
[375198944,1753582272206,-509.61,0.00023835,2]
[375198945,1753582272215,-460.0,0.00023835,2]
[375198946,1753582272225,-460.0,0.00023835,2]
[375198947,1753582272234,-1968.49,0.00023835,2]
[375198948,1753582272244,-591.71,0.00023835,2]
[375198949,1753582272253,-460.0,0.00023835,2]
[375198950,1753582272263,-1208.47,0.00023835,2]
[375198951,1753582272272,-532.31591449,0.00023835,2]
[375198952,1753582272281,-358.13704339,0.00023835,2]
[375198953,1753582272291,-460.0,0.00023835,2]
[375198954,1753582272300,-1316.47,0.00023835,2]
[375198955,1753582272310,-487.35,0.00023835,2]
[375198956,1753582272319,-1027.94,0.00023835,2]
[375198957,1753582272328,-153.41544436,0.00023835,2]
[375198958,1753582272338,-715.99,0.00023835,2]
[375198959,1753582272347,-1619.17,0.00023835,2]
[375198960,1753582272357,-465.67,0.00023835,2]
[375198961,1753582272366,-587.06,0.00023835,2]
[375198962,1753582272375,-460.0,0.00023835,2]
[375198963,1753582272385,-509.37,0.00023835,2]
[375198964,1753582272394,-472.92,0.00023835,2]
[375198965,1753582272404,-460.0,0.00023886,2]
[375198966,1753582272413,-460.0,0.00023886,2]
[375198967,1753582272423,-727.74,0.00023886,2]
[375198968,1753582272434,-805.9,0.00023886,2]
[375198969,1753582272446,-460.0,0.00023886,2]
[375198970,1753582272456,-485.35779412,0.00023886,2]
[375198971,1753582272465,-1417.39,0.00023886,2]
[375198972,1753582272474,-502.97,0.00023886,2]
[375198973,1753582272484,-1588.93,0.00023886,2]
[375198974,1753582272494,-955.56,0.00023886,2]
[375198975,1753582272503,-151.0,0.00023886,7]
[375198976,1753582272512,-460.0,0.00023886,2]
[375198977,1753582272522,-464.84,0.00023886,2]
[375198978,1753582272532,-264.93033859,0.00023886,2]
[375198979,1753582272541,-562.76,0.00023886,2]
[375198980,1753582272550,-1937.42,0.00023886,2]
[375198981,1753582272560,-2170.36,0.00023886,2]
[375198982,1753582272569,-372.04839874,0.00023886,2]
[375198983,1753582272578,-460.0,0.00023886,2]
[375198984,1753582272588,-3500.14,0.00023886,2]
[375198985,1753582272597,-1578.15,0.00023888,2]
[375198986,1753582272608,-160.0,0.00023983,4]
[375198987,1753582272618,-151.0,0.00024,5]
[375198988,1753582272627,-160.0,0.00024,7]
[375198989,1753582272637,-3247.78997933,0.00024003,10]
[375198990,1753582272646,-150.0,0.00024011,2]
[375198991,1753582272655,-460.0,0.00024109,2]
[375198992,1753582272665,-460.0,0.00024109,2]
[375198993,1753582272674,-487.33,0.00024109,2]
[375198994,1753582272683,-3933.84,0.00024109,2]
[375198995,1753582272694,-1793.96,0.00024109,2]
[375198996,1753582272703,-509.61,0.00024109,2]
[375198997,1753582272713,-413.26,0.00024109,2]
[375198998,1753582272722,-460.0,0.00024109,2]
[375198999,1753582272732,-1968.49,0.00024109,2]
[375199000,1753582272741,-591.71,0.00024109,2]
[375199001,1753582272751,-460.0,0.00024109,2]
[375199002,1753582272760,-1208.47,0.00024109,2]
[375199003,1753582272769,-268.55776885,0.00024109,2]
[375199004,1753582272779,-1316.47,0.00024109,2]
[375199005,1753582272788,-487.35,0.00024109,2]
[375199006,1753582272799,-1027.94,0.00024109,2]
[375199007,1753582272809,-715.99,0.00024109,2]
[375199008,1753582272818,-1619.17,0.00024109,2]
[375199009,1753582272827,-465.67,0.00024109,2]
[375199010,1753582272837,-587.06,0.00024109,2]
[375199011,1753582272846,-460.0,0.00024109,2]
[375199012,1753582272856,-509.37,0.00024109,2]
[375199013,1753582272866,-472.92,0.00024109,2]
[375199014,1753582272875,-25000.0,0.00024147,2]
[375199015,1753582272885,-151.0,0.00024147,7]
[375199016,1753582272894,-460.0,0.0002416,2]
[375199017,1753582272904,-306.24448571,0.0002416,2]
[375199018,1753582272914,-727.74,0.0002416,2]
[375199019,1753582272923,-805.9,0.0002416,2]
[375199020,1753582272933,-460.0,0.0002416,2]
[375199021,1753582272943,-1417.39,0.0002416,2]
[375199022,1753582272952,-502.97,0.0002416,2]
[375199023,1753582272961,-1588.93,0.0002416,2]
[375199024,1753582272971,-955.56,0.0002416,2]
[375199025,1753582272983,-460.0,0.0002416,2]
[375199026,1753582272994,-464.84,0.0002416,2]
[375199027,1753582273004,-562.76,0.0002416,2]
[375199028,1753582273014,-1937.42,0.0002416,2]
[375199029,1753582273024,-2170.36,0.0002416,2]
[375199030,1753582273034,-460.0,0.0002416,2]
[375199031,1753582273043,-3500.14,0.0002416,2]
[375199032,1753582273052,-1578.15,0.00024162,2]
[375199033,1753582273063,-3247.78997933,0.00024176,10]
[375199034,1753582273073,-168.0,0.00024301,2]
[375199035,1753582273083,-160.0,0.00024322,5]
[375199036,1753582273092,-3247.78997933,0.00024348,11]
[375199037,1753582273102,-460.0,0.00024383,2]
[375199038,1753582273112,-219.42290268,0.00024383,2]
[375199039,1753582273122,-151.0,0.00024383,7]
[375199040,1753582273217,-487.33,0.00024383,2]
[375199041,1753582273227,-1793.96,0.00024383,2]
[375199042,1753582273237,-3933.84,0.00024383,2]
[375199043,1753582273247,-509.61,0.00024383,2]
[375199044,1753582273256,-571.46,0.00024383,2]
[375199045,1753582273266,-1968.49,0.00024383,2]
[375199046,1753582273275,-591.71,0.00024383,2]
[375199047,1753582273285,-277.76835794,0.00024383,2]
[375199048,1753582273296,-1208.47,0.00024383,2]
[375199049,1753582273306,-1316.47,0.00024383,2]
[375199050,1753582273318,-487.35,0.00024383,2]
[375199051,1753582273327,-1027.94,0.00024383,2]
[375199052,1753582273339,-715.99,0.00024383,2]
[375199053,1753582273350,-1619.17,0.00024383,2]
[375199054,1753582273360,-465.67,0.00024383,2]
[375199055,1753582273371,-587.06,0.00024383,2]
[375199056,1753582273382,-460.0,0.00024383,2]
[375199057,1753582273392,-509.37,0.00024383,2]
[375199058,1753582273403,-472.92,0.00024383,2]
[375199059,1753582273413,-154.980881,0.00024394,2]
[375199060,1753582273423,-460.0,0.00024434,2]
[375199061,1753582273434,-727.74,0.00024434,2]
[375199062,1753582273443,-805.9,0.00024434,2]
[375199063,1753582273453,-460.0,0.00024434,2]
[375199064,1753582273462,-1417.39,0.00024434,2]
[375199065,1753582273472,-502.97,0.00024434,2]
[375199066,1753582273482,-1588.93,0.00024434,2]
[375199067,1753582273493,-955.56,0.00024434,2]
[375199068,1753582273504,-460.0,0.00024434,2]
[375199069,1753582273516,-464.84,0.00024434,2]
[375199070,1753582273527,-562.76,0.00024434,2]
[375199071,1753582273538,-1937.42,0.00024434,2]
[375199072,1753582273548,-2170.36,0.00024434,2]
[375199073,1753582273557,-534.73756626,0.00024434,2]
[375199074,1753582273566,-3500.14,0.00024434,2]
[375199075,1753582273576,-1578.15,0.00024436,2]
[375199076,1753582273585,-3247.78997933,0.00024521,11]
[375199077,1753582273596,-156.94268995,0.00024524,2]
[375199078,1753582273606,-460.0,0.00024657,2]
[375199079,1753582273616,-487.33,0.00024657,2]
[375199080,1753582273626,-1793.96,0.00024657,2]
[375199081,1753582273636,-3933.84,0.00024657,2]
[375199082,1753582273645,-509.61,0.00024657,2]
[375199083,1753582273654,-1968.49,0.00024657,2]
[375199084,1753582273664,-1208.47,0.00024657,2]
[375199085,1753582273674,-487.35,0.00024657,2]
[375199086,1753582273683,-1316.47,0.00024657,2]
[375199087,1753582273693,-1027.94,0.00024657,2]
[375199088,1753582273703,-715.99,0.00024657,2]
[375199089,1753582273712,-1619.17,0.00024657,2]
[375199090,1753582273722,-465.67,0.00024657,2]
[375199091,1753582273731,-587.06,0.00024657,2]
[375199092,1753582273741,-460.0,0.00024657,2]
[375199093,1753582273751,-509.37,0.00024657,2]
[375199094,1753582273760,-442.36085661,0.00024657,2]
[375199095,1753582274099,-460.0,0.00019178,2]
[375199096,1753582274109,-460.0,0.00019178,2]
[375199097,1753582274119,-460.0,0.00019178,2]
[375199098,1753582274129,-460.0,0.00019178,2]
[375199099,1753582274139,-460.0,0.00019228,2]
[375199100,1753582274150,-460.0,0.00019228,2]
[375199101,1753582274160,-460.0,0.00019452,2]
[375199102,1753582274169,-460.0,0.00019452,2]
[375199103,1753582274178,-460.0,0.00019452,2]
[375199104,1753582274188,-460.0,0.00019452,2]
[375199105,1753582274199,-460.0,0.00019502,2]
[375199106,1753582274209,-460.0,0.00019726,2]
[375199107,1753582274221,-460.0,0.00019726,2]
[375199108,1753582274230,-460.0,0.00019726,2]
[375199109,1753582274241,-460.0,0.00019776,2]
[375199110,1753582274253,-460.0,0.0002,2]
[375199111,1753582274262,-271.00273005,0.0002,2]
[375199112,1753582274274,-460.0,0.0002,2]
[375199113,1753582274283,-460.0,0.0002005,2]
[375199114,1753582274293,-460.0,0.00020273,2]
[375199115,1753582274302,-460.0,0.00020273,2]
[375199116,1753582274311,-460.0,0.00020547,2]
[375199117,1753582274321,-460.0,0.00020547,2]
[375199118,1753582274330,-165.477716,0.00020598,2]
[375199119,1753582274340,-460.0,0.00020821,2]
[375199120,1753582274350,-460.0,0.00021095,2]
[375199121,1753582274360,-460.0,0.00021369,2]
[375199122,1753582274369,-460.0,0.00021643,2]
[375199123,1753582274379,-351.3319427,0.00021917,2]
[375199124,1753582274389,-151.0,0.00022503,2]
[375199125,1753582274399,-4331.55739442,0.00024091,2]
[375199126,1753582274408,-30.55914339,0.00024657,2]
[375199127,1753582274417,-160.0,0.00024661,6]
[375199128,1753582274427,-154.980881,0.00024689,11]
[375199129,1753582274437,-3247.78997933,0.00024693,11]
[375199130,1753582274448,-25000.0,0.00024695,2]
[375199131,1753582274457,-154.980881,0.00024699,11]
[375199132,1753582274467,-460.0,0.00024708,2]
[375199133,1753582274476,-727.74,0.00024708,2]
[375199134,1753582274486,-805.9,0.00024708,2]
[375199135,1753582274495,-460.0,0.00024708,2]
[375199136,1753582274505,-1417.39,0.00024708,2]
[375199137,1753582274514,-502.97,0.00024708,2]
[375199138,1753582274524,-1588.93,0.00024708,2]
[375199139,1753582274534,-955.56,0.00024708,2]
[375199140,1753582274544,-355.79539659,0.00024708,2]
[375199141,1753582274554,-464.84,0.00024708,2]